[Event "Titled Tuesday Blitz May 9 Early 2023"]
[White "Skliarov, Viktor"]
[Black "Klukin, Kirill"]
[WhiteFideId "14106736"]
[BlackFideId "24199273"]
[WhiteElo "2317"]
[BlackElo "2344"]
[Result "1-0"]
[Round "09"]
[TimeControl "180+2"]
[Date "2023.05.09"]
[WhiteClock "0:00:11"]
[BlackClock "0:00:00"]

1. e4 {[%clk 0:03:00]}  e6 {[%clk 0:02:52]} 2. d4 {[%clk 0:03:00]}  d6 {[%clk 0:02:52]} 3. Nc3 {[%clk 0:02:58]}  g6 {[%clk 0:02:50]} 4. Be3 {[%clk 0:02:56]}  Bg7 {[%clk 0:02:50]} 5. Qd2 {[%clk 0:02:56]}  h5 {[%clk 0:02:50]} 6. f3 {[%clk 0:02:55]}  Ne7 {[%clk 0:02:51]} 7. O-O-O {[%clk 0:02:55]}  a6 {[%clk 0:02:51]} 8. g4 {[%clk 0:02:50]}  Nd7 {[%clk 0:02:35]} 9. Nge2 {[%clk 0:02:47]}  b5 {[%clk 0:02:31]} 10. gxh5 {[%clk 0:02:46]}  Rxh5 {[%clk 0:02:31]} 11. Ng3 {[%clk 0:02:46]}  Rh8 {[%clk 0:02:29]} 12. h4 {[%clk 0:02:46]}  Nf6 {[%clk 0:02:25]} 13. Bg5 {[%clk 0:02:40]}  Bb7 {[%clk 0:02:25]} 14. Kb1 {[%clk 0:02:21]}  Qd7 {[%clk 0:02:23]} 15. Qf4 {[%clk 0:01:40]}  Nh5 {[%clk 0:02:00]} 16. Nxh5 {[%clk 0:01:34]}  gxh5 {[%clk 0:01:42]} 17. Bh3 {[%clk 0:01:33]}  f6 {[%clk 0:01:25]} 18. Bxf6 {[%clk 0:01:27]}  Rf8 {[%clk 0:01:23]} 19. e5 {[%clk 0:01:19]}  O-O-O {[%clk 0:01:20]} 20. Qg5 {[%clk 0:01:06]}  Bxf6 {[%clk 0:01:07]} 21. exf6 {[%clk 0:01:05]}  Nd5 {[%clk 0:01:06]} 22. Nxd5 {[%clk 0:00:54]}  Bxd5 {[%clk 0:01:06]} 23. Rde1 {[%clk 0:00:55]}  Kb8 {[%clk 0:00:57]} 24. Qxh5 {[%clk 0:00:30]}  Qc6 {[%clk 0:00:43]} 25. Qg5 {[%clk 0:00:22]}  Qc4 {[%clk 0:00:36]} 26. b3 {[%clk 0:00:20]}  Qxd4 {[%clk 0:00:36]} 27. Bxe6 {[%clk 0:00:20]}  Bxf3 {[%clk 0:00:24]} 28. Rhf1 {[%clk 0:00:20]}  Rxf6 {[%clk 0:00:24]} 29. Rxf3 {[%clk 0:00:18]}  Rdf8 {[%clk 0:00:14]} 30. Rxf6 {[%clk 0:00:17]}  Rxf6 {[%clk 0:00:15]} 31. Qg8+ {[%clk 0:00:17]}  Ka7 {[%clk 0:00:15]} 32. Bd5 {[%clk 0:00:17]}  Qc3 {[%clk 0:00:11]} 33. Qg1+ {[%clk 0:00:14]}  c5 {[%clk 0:00:08]} 34. Re7+ {[%clk 0:00:13]}  Kb6 {[%clk 0:00:09]} 35. Re6 {[%clk 0:00:13]}  Rf4 {[%clk 0:00:04]} 36. Rxd6+ {[%clk 0:00:13]}  Ka5 {[%clk 0:00:05]} 37. Qc1 {[%clk 0:00:12]}  Qb4 {[%clk 0:00:04]} 38. Bb7 {[%clk 0:00:11]}  Qe4 {[%clk 0:00:00]} 39. Qa3+ {[%clk 0:00:11]} 1-0


[Site "https://www.chess.com"]

[Event "Titled Tuesday Blitz May 9 Early 2023"]
[White "Leiva, Gianmarco"]
[Black "Goffredo_Fofi"]
[WhiteFideId "3804399"]
[WhiteElo "2365"]
[BlackElo "2554"]
[Result "1-0"]
[Round "09"]
[TimeControl "180+2"]
[Date "2023.05.09"]
[WhiteClock "0:00:32"]
[BlackClock "0:00:10"]

1. d4 {[%clk 0:02:44]}  Nf6 {[%clk 0:02:59]} 2. c4 {[%clk 0:02:44]}  g6 {[%clk 0:02:58]} 3. Nc3 {[%clk 0:02:44]}  Bg7 {[%clk 0:02:58]} 4. e4 {[%clk 0:02:45]}  O-O {[%clk 0:02:59]} 5. Nf3 {[%clk 0:02:44]}  d6 {[%clk 0:02:59]} 6. Be2 {[%clk 0:02:45]}  e5 {[%clk 0:03:00]} 7. O-O {[%clk 0:02:45]}  Nc6 {[%clk 0:03:00]} 8. d5 {[%clk 0:02:43]}  Ne7 {[%clk 0:03:00]} 9. Ne1 {[%clk 0:02:39]}  Nd7 {[%clk 0:03:00]} 10. Be3 {[%clk 0:02:38]}  f5 {[%clk 0:03:00]} 11. f3 {[%clk 0:02:39]}  f4 {[%clk 0:03:01]} 12. Bf2 {[%clk 0:02:39]}  g5 {[%clk 0:03:02]} 13. a4 {[%clk 0:02:36]}  a5 {[%clk 0:03:01]} 14. Nd3 {[%clk 0:02:31]}  b6 {[%clk 0:03:00]} 15. b4 {[%clk 0:02:28]}  axb4 {[%clk 0:03:01]} 16. Nb5 {[%clk 0:02:29]}  Nf6 {[%clk 0:02:55]} 17. a5 {[%clk 0:02:16]}  bxa5 {[%clk 0:02:14]} 18. Na7 {[%clk 0:02:12]}  Bd7 {[%clk 0:02:08]} 19. Rxa5 {[%clk 0:02:13]}  g4 {[%clk 0:02:08]} 20. fxg4 {[%clk 0:02:10]}  Nxe4 {[%clk 0:02:05]} 21. c5 {[%clk 0:01:48]}  Nc3 {[%clk 0:01:38]} 22. Qc2 {[%clk 0:01:41]}  Nexd5 {[%clk 0:01:28]} 23. Nxb4 {[%clk 0:01:31]}  Nxe2+ {[%clk 0:01:12]} 24. Qxe2 {[%clk 0:01:31]}  Nxb4 {[%clk 0:01:11]} 25. Qc4+ {[%clk 0:01:32]}  d5 {[%clk 0:00:57]} 26. Qxb4 {[%clk 0:01:32]}  Bxg4 {[%clk 0:00:57]} 27. c6 {[%clk 0:01:23]}  d4 {[%clk 0:00:44]} 28. Nb5 {[%clk 0:01:04]}  Rxa5 {[%clk 0:00:27]} 29. Qxa5 {[%clk 0:01:04]}  f3 {[%clk 0:00:20]} 30. Qxc7 {[%clk 0:00:52]}  fxg2 {[%clk 0:00:19]} 31. Rc1 {[%clk 0:00:49]}  Qf6 {[%clk 0:00:19]} 32. Rc2 {[%clk 0:00:40]}  d3 {[%clk 0:00:19]} 33. Ra2 {[%clk 0:00:36]}  Be2 {[%clk 0:00:19]} 34. Qb6 {[%clk 0:00:35]}  e4 {[%clk 0:00:17]} 35. c7 {[%clk 0:00:32]}  Qe6 {[%clk 0:00:10]} 36. Qxe6+ {[%clk 0:00:32]} 1-0


[Site "https://www.chess.com"]

[Event "Titled Tuesday Blitz May 9 Early 2023"]
[White "wqws"]
[Black "Lavrik, Dmitry"]
[BlackFideId "24113190"]
[WhiteElo "2556"]
[BlackElo "2345"]
[Result "1-0"]
[Round "09"]
[TimeControl "180+2"]
[Date "2023.05.09"]
[WhiteClock "0:00:58"]
[BlackClock "0:00:00"]

1. e4 {[%clk 0:03:00]}  c5 {[%clk 0:02:59]} 2. Nf3 {[%clk 0:02:59]}  d6 {[%clk 0:03:00]} 3. d4 {[%clk 0:03:00]}  cxd4 {[%clk 0:03:01]} 4. Nxd4 {[%clk 0:03:00]}  Nf6 {[%clk 0:03:01]} 5. Nc3 {[%clk 0:03:01]}  Nc6 {[%clk 0:03:02]} 6. Bg5 {[%clk 0:03:00]}  e6 {[%clk 0:03:00]} 7. Qd2 {[%clk 0:03:00]}  a6 {[%clk 0:02:58]} 8. O-O-O {[%clk 0:03:00]}  h6 {[%clk 0:02:57]} 9. Be3 {[%clk 0:02:48]}  Be7 {[%clk 0:02:34]} 10. f3 {[%clk 0:02:47]}  Qc7 {[%clk 0:02:31]} 11. Kb1 {[%clk 0:02:46]}  Ne5 {[%clk 0:02:26]} 12. g4 {[%clk 0:02:46]}  b5 {[%clk 0:02:23]} 13. Qf2 {[%clk 0:02:42]}  Bb7 {[%clk 0:02:21]} 14. h4 {[%clk 0:02:37]}  Rc8 {[%clk 0:02:10]} 15. Bd3 {[%clk 0:02:34]}  b4 {[%clk 0:01:34]} 16. Nce2 {[%clk 0:02:33]}  Nfxg4 {[%clk 0:01:16]} 17. fxg4 {[%clk 0:02:30]}  Nxg4 {[%clk 0:01:16]} 18. Qg3 {[%clk 0:02:26]}  Nxe3 {[%clk 0:01:17]} 19. Qxe3 {[%clk 0:02:27]}  Bf6 {[%clk 0:01:16]} 20. Rdf1 {[%clk 0:02:14]}  Qe7 {[%clk 0:01:10]} 21. Nb3 {[%clk 0:02:12]}  Be5 {[%clk 0:01:03]} 22. h5 {[%clk 0:02:09]}  O-O {[%clk 0:01:03]} 23. Rhg1 {[%clk 0:02:06]}  Kh8 {[%clk 0:01:02]} 24. Na5 {[%clk 0:02:04]}  Rc5 {[%clk 0:00:58]} 25. Nf4 {[%clk 0:01:44]}  Rxa5 {[%clk 0:00:49]} 26. Bc4 {[%clk 0:01:30]}  Bxf4 {[%clk 0:00:42]} 27. Rxf4 {[%clk 0:01:28]}  Rxh5 {[%clk 0:00:40]} 28. Rfg4 {[%clk 0:01:28]}  Rg8 {[%clk 0:00:33]} 29. Bd3 {[%clk 0:01:23]}  e5 {[%clk 0:00:30]} 30. R4g3 {[%clk 0:01:18]}  Bc8 {[%clk 0:00:29]} 31. Qb6 {[%clk 0:01:16]}  Be6 {[%clk 0:00:24]} 32. Qxb4 {[%clk 0:01:14]}  Rh4 {[%clk 0:00:20]} 33. Qb6 {[%clk 0:01:10]}  d5 {[%clk 0:00:16]} 34. exd5 {[%clk 0:01:02]}  Bxd5 {[%clk 0:00:00]} 35. Rxg7 {[%clk 0:00:58]} 1-0


[Site "https://www.chess.com"]

[Event "Titled Tuesday Blitz May 9 Early 2023"]
[White "Volkov, Maksim"]
[Black "WindWhistler11"]
[WhiteFideId "54123070"]
[WhiteElo "2297"]
[BlackElo "2498"]
[Result "1-0"]
[Round "09"]
[TimeControl "180+2"]
[Date "2023.05.09"]
[WhiteClock "0:00:07"]
[BlackClock "0:00:04"]

1. d4 {[%clk 0:02:55]}  Nf6 {[%clk 0:02:59]} 2. c4 {[%clk 0:02:56]}  e6 {[%clk 0:02:59]} 3. g3 {[%clk 0:02:56]}  c5 {[%clk 0:02:59]} 4. d5 {[%clk 0:02:56]}  exd5 {[%clk 0:02:59]} 5. cxd5 {[%clk 0:02:57]}  Bd6 {[%clk 0:02:59]} 6. Nc3 {[%clk 0:02:56]}  O-O {[%clk 0:02:59]} 7. Nf3 {[%clk 0:02:57]}  Re8 {[%clk 0:03:00]} 8. Bg2 {[%clk 0:02:57]}  Bf8 {[%clk 0:03:00]} 9. O-O {[%clk 0:02:57]}  d6 {[%clk 0:03:00]} 10. Bf4 {[%clk 0:02:56]}  a6 {[%clk 0:02:57]} 11. a4 {[%clk 0:02:56]}  Nh5 {[%clk 0:02:43]} 12. Bd2 {[%clk 0:02:53]}  Nd7 {[%clk 0:02:43]} 13. e4 {[%clk 0:02:51]}  Rb8 {[%clk 0:02:37]} 14. Re1 {[%clk 0:02:49]}  b5 {[%clk 0:02:31]} 15. axb5 {[%clk 0:02:34]}  axb5 {[%clk 0:02:32]} 16. b4 {[%clk 0:02:24]}  Nhf6 {[%clk 0:02:28]} 17. Qc2 {[%clk 0:02:14]}  cxb4 {[%clk 0:02:23]} 18. Na2 {[%clk 0:02:13]}  b3 {[%clk 0:02:21]} 19. Qxb3 {[%clk 0:02:14]}  Nc5 {[%clk 0:02:22]} 20. Qc2 {[%clk 0:02:09]}  Rxe4 {[%clk 0:02:21]} 21. Nb4 {[%clk 0:02:07]}  Qe8 {[%clk 0:02:10]} 22. Nh4 {[%clk 0:01:25]}  Re2 {[%clk 0:01:54]} 23. Nc6 {[%clk 0:01:19]}  Rb6 {[%clk 0:01:45]} 24. Bf3 {[%clk 0:01:13]}  Rxe1+ {[%clk 0:01:38]} 25. Rxe1 {[%clk 0:01:14]}  Qd7 {[%clk 0:01:35]} 26. Bb4 {[%clk 0:01:04]}  g6 {[%clk 0:01:32]} 27. Qc3 {[%clk 0:00:56]}  Ng4 {[%clk 0:01:11]} 28. Qd4 {[%clk 0:00:25]}  Ne5 {[%clk 0:00:52]} 29. Nxe5 {[%clk 0:00:18]}  dxe5 {[%clk 0:00:52]} 30. Rxe5 {[%clk 0:00:19]}  Ra6 {[%clk 0:00:13]} 31. Re1 {[%clk 0:00:10]}  Nb3 {[%clk 0:00:12]} 32. Qc3 {[%clk 0:00:10]}  Bxb4 {[%clk 0:00:08]} 33. Qxb4 {[%clk 0:00:11]}  Na5 {[%clk 0:00:09]} 34. Ng2 {[%clk 0:00:09]}  Nc4 {[%clk 0:00:08]} 35. Nf4 {[%clk 0:00:09]}  Nd6 {[%clk 0:00:08]} 36. Qc5 {[%clk 0:00:09]}  Qd8 {[%clk 0:00:06]} 37. h3 {[%clk 0:00:08]}  Bf5 {[%clk 0:00:04]} 38. Kg2 {[%clk 0:00:07]}  Qb6 {[%clk 0:00:04]} 39. Qb4 {[%clk 0:00:06]}  Ra4 {[%clk 0:00:03]} 40. Qc3 {[%clk 0:00:05]}  Rxf4 {[%clk 0:00:03]} 41. gxf4 {[%clk 0:00:05]}  b4 {[%clk 0:00:04]} 42. Qf6 {[%clk 0:00:05]}  h5 {[%clk 0:00:03]} 43. Re8+ {[%clk 0:00:05]}  Nxe8 {[%clk 0:00:02]} 44. Qxb6 {[%clk 0:00:05]}  Ng7 {[%clk 0:00:02]} 45. Qxb4 {[%clk 0:00:06]}  Kh7 {[%clk 0:00:03]} 46. d6 {[%clk 0:00:06]}  Ne6 {[%clk 0:00:03]} 47. Bd5 {[%clk 0:00:06]}  Nd8 {[%clk 0:00:01]} 48. Qb8 {[%clk 0:00:05]}  Ne6 {[%clk 0:00:01]} 49. Bxe6 {[%clk 0:00:06]}  Bxe6 {[%clk 0:00:02]} 50. Qc7 {[%clk 0:00:06]}  Kg7 {[%clk 0:00:03]} 51. d7 {[%clk 0:00:07]}  Bxd7 {[%clk 0:00:04]} 52. Qxd7 {[%clk 0:00:07]} 1-0


[Site "https://www.chess.com"]

[Event "Titled Tuesday Blitz May 9 Early 2023"]
[White "Ljukin, Sergei"]
[Black "Martinez Ramirez, Lennis"]
[WhiteFideId "14102200"]
[BlackFideId "3509079"]
[WhiteElo "2312"]
[BlackElo "2410"]
[Result "0-1"]
[Round "09"]
[TimeControl "180+2"]
[Date "2023.05.09"]
[WhiteClock "0:00:00"]
[BlackClock "0:00:11"]

1. e4 {[%clk 0:02:54]}  c5 {[%clk 0:02:50]} 2. Nf3 {[%clk 0:02:52]}  Nc6 {[%clk 0:02:46]} 3. d4 {[%clk 0:02:52]}  cxd4 {[%clk 0:02:47]} 4. Nxd4 {[%clk 0:02:52]}  Nf6 {[%clk 0:02:47]} 5. Nc3 {[%clk 0:02:49]}  e5 {[%clk 0:02:47]} 6. Ndb5 {[%clk 0:02:49]}  d6 {[%clk 0:02:47]} 7. Nd5 {[%clk 0:02:49]}  Nxd5 {[%clk 0:02:46]} 8. exd5 {[%clk 0:02:50]}  Nb8 {[%clk 0:02:46]} 9. a4 {[%clk 0:02:50]}  Be7 {[%clk 0:02:46]} 10. Be2 {[%clk 0:02:50]}  O-O {[%clk 0:02:46]} 11. O-O {[%clk 0:02:50]}  Nd7 {[%clk 0:02:45]} 12. f4 {[%clk 0:02:50]}  a6 {[%clk 0:02:42]} 13. Na3 {[%clk 0:02:50]}  b6 {[%clk 0:02:39]} 14. Nc4 {[%clk 0:02:48]}  Bb7 {[%clk 0:02:11]} 15. Be3 {[%clk 0:02:43]}  e4 {[%clk 0:02:03]} 16. Bg4 {[%clk 0:02:12]}  f5 {[%clk 0:02:03]} 17. Be2 {[%clk 0:02:08]}  Rc8 {[%clk 0:02:02]} 18. c3 {[%clk 0:01:39]}  Qc7 {[%clk 0:02:01]} 19. a5 {[%clk 0:01:13]}  b5 {[%clk 0:01:58]} 20. Nb6 {[%clk 0:01:13]}  Nxb6 {[%clk 0:01:44]} 21. axb6 {[%clk 0:01:13]}  Qd8 {[%clk 0:01:27]} 22. Qd2 {[%clk 0:01:12]}  g6 {[%clk 0:01:21]} 23. Ra5 {[%clk 0:01:02]}  Rc5 {[%clk 0:00:54]} 24. Bxc5 {[%clk 0:00:49]}  dxc5 {[%clk 0:00:54]} 25. c4 {[%clk 0:00:45]}  Qxb6 {[%clk 0:00:54]} 26. Raa1 {[%clk 0:00:25]}  b4 {[%clk 0:00:53]} 27. g4 {[%clk 0:00:15]}  Bf6 {[%clk 0:00:53]} 28. gxf5 {[%clk 0:00:14]}  gxf5 {[%clk 0:00:54]} 29. Kh1 {[%clk 0:00:15]}  Bd4 {[%clk 0:00:54]} 30. Rg1+ {[%clk 0:00:13]}  Kh8 {[%clk 0:00:54]} 31. Rg5 {[%clk 0:00:12]}  Qf6 {[%clk 0:00:51]} 32. Rb1 {[%clk 0:00:09]}  b3 {[%clk 0:00:45]} 33. Rg3 {[%clk 0:00:08]}  Qb6 {[%clk 0:00:36]} 34. Qd1 {[%clk 0:00:05]}  e3 {[%clk 0:00:33]} 35. Qd3 {[%clk 0:00:04]}  a5 {[%clk 0:00:30]} 36. Rbg1 {[%clk 0:00:04]}  Bc8 {[%clk 0:00:19]} 37. Rh3 {[%clk 0:00:02]}  a4 {[%clk 0:00:18]} 38. Bh5 {[%clk 0:00:00]}  Qh6 {[%clk 0:00:11]} 0-1


[Site "https://www.chess.com"]

[Event "Titled Tuesday Blitz May 9 Early 2023"]
[White "Manukyan, Sargis V."]
[Black "Nissinen, Niilo Man"]
[WhiteFideId "13303465"]
[BlackFideId "30950767"]
[WhiteElo "2236"]
[BlackElo "1952"]
[Result "1-0"]
[Round "09"]
[TimeControl "180+2"]
[Date "2023.05.09"]
[WhiteClock "0:00:05"]
[BlackClock "0:00:00"]

1. d4 {[%clk 0:03:00]}  Nf6 {[%clk 0:03:00]} 2. c4 {[%clk 0:03:00]}  g6 {[%clk 0:03:00]} 3. Nc3 {[%clk 0:02:59]}  d5 {[%clk 0:03:01]} 4. cxd5 {[%clk 0:02:58]}  Nxd5 {[%clk 0:03:02]} 5. e4 {[%clk 0:02:50]}  Nxc3 {[%clk 0:03:01]} 6. bxc3 {[%clk 0:02:51]}  Bg7 {[%clk 0:03:02]} 7. Nf3 {[%clk 0:02:51]}  c5 {[%clk 0:03:02]} 8. Be3 {[%clk 0:02:51]}  Nc6 {[%clk 0:02:59]} 9. Rc1 {[%clk 0:02:45]}  O-O {[%clk 0:02:55]} 10. d5 {[%clk 0:02:44]}  Ne5 {[%clk 0:02:49]} 11. Nxe5 {[%clk 0:02:43]}  Bxe5 {[%clk 0:02:50]} 12. f4 {[%clk 0:02:43]}  Bg7 {[%clk 0:02:49]} 13. e5 {[%clk 0:02:37]}  Bf5 {[%clk 0:02:35]} 14. Bxc5 {[%clk 0:02:27]}  g5 {[%clk 0:02:22]} 15. Be3 {[%clk 0:01:38]}  Be4 {[%clk 0:01:59]} 16. c4 {[%clk 0:01:33]}  gxf4 {[%clk 0:01:57]} 17. Bxf4 {[%clk 0:01:27]}  f6 {[%clk 0:01:55]} 18. e6 {[%clk 0:01:24]}  f5 {[%clk 0:01:49]} 19. Bd3 {[%clk 0:01:18]}  Qa5+ {[%clk 0:00:27]} 20. Ke2 {[%clk 0:01:01]}  Qxa2+ {[%clk 0:00:25]} 21. Rc2 {[%clk 0:00:56]}  Qb3 {[%clk 0:00:18]} 22. h4 {[%clk 0:00:41]}  Rac8 {[%clk 0:00:12]} 23. Rh3 {[%clk 0:00:32]}  Qb4 {[%clk 0:00:06]} 24. Rg3 {[%clk 0:00:28]}  Kh8 {[%clk 0:00:06]} 25. h5 {[%clk 0:00:13]}  b5 {[%clk 0:00:06]} 26. Rxg7 {[%clk 0:00:09]}  Kxg7 {[%clk 0:00:05]} 27. Bg5 {[%clk 0:00:08]}  bxc4 {[%clk 0:00:03]} 28. Bxe4 {[%clk 0:00:08]}  fxe4 {[%clk 0:00:03]} 29. Qd4+ {[%clk 0:00:08]}  Rf6 {[%clk 0:00:03]} 30. h6+ {[%clk 0:00:07]}  Kg6 {[%clk 0:00:02]} 31. Bxf6 {[%clk 0:00:05]}  exf6 {[%clk 0:00:02]} 32. Qxe4+ {[%clk 0:00:06]}  Kxh6 {[%clk 0:00:02]} 33. e7 {[%clk 0:00:06]}  Qd6 {[%clk 0:00:02]} 34. Rc3 {[%clk 0:00:04]}  Qe5 {[%clk 0:00:01]} 35. Rh3+ {[%clk 0:00:04]}  Kg7 {[%clk 0:00:02]} 36. Qxe5 {[%clk 0:00:04]}  fxe5 {[%clk 0:00:02]} 37. d6 {[%clk 0:00:05]}  Kg6 {[%clk 0:00:00]} 38. d7 {[%clk 0:00:05]} 1-0


[Site "https://www.chess.com"]

[Event "Titled Tuesday Blitz May 9 Early 2023"]
[White "Namitbir Singh Walia"]
[Black "Tasev, Dejan"]
[WhiteFideId "35071068"]
[BlackFideId "936618"]
[WhiteElo "2239"]
[BlackElo "2244"]
[Result "0-1"]
[Round "09"]
[TimeControl "180+2"]
[Date "2023.05.09"]
[WhiteClock "0:00:00"]
[BlackClock "0:00:19"]

1. e4 {[%clk 0:03:00]}  e5 {[%clk 0:02:59]} 2. Nf3 {[%clk 0:03:01]}  Nc6 {[%clk 0:02:59]} 3. Bc4 {[%clk 0:02:57]}  Nf6 {[%clk 0:02:59]} 4. O-O {[%clk 0:02:55]}  Be7 {[%clk 0:02:46]} 5. Re1 {[%clk 0:02:46]}  O-O {[%clk 0:02:45]} 6. d4 {[%clk 0:02:41]}  d6 {[%clk 0:02:43]} 7. h3 {[%clk 0:02:40]}  exd4 {[%clk 0:02:40]} 8. Nxd4 {[%clk 0:02:41]}  Bd7 {[%clk 0:02:40]} 9. Nc3 {[%clk 0:02:39]}  Nxd4 {[%clk 0:02:32]} 10. Qxd4 {[%clk 0:02:40]}  Bc6 {[%clk 0:02:25]} 11. Bg5 {[%clk 0:02:28]}  h6 {[%clk 0:02:21]} 12. Bh4 {[%clk 0:02:27]}  a6 {[%clk 0:02:16]} 13. a4 {[%clk 0:02:19]}  Re8 {[%clk 0:02:10]} 14. Rad1 {[%clk 0:02:18]}  Nd7 {[%clk 0:01:43]} 15. Bxe7 {[%clk 0:02:15]}  Qxe7 {[%clk 0:01:40]} 16. Bd5 {[%clk 0:02:04]}  Qf6 {[%clk 0:01:31]} 17. Qxf6 {[%clk 0:01:32]}  Nxf6 {[%clk 0:01:29]} 18. Bxc6 {[%clk 0:01:32]}  bxc6 {[%clk 0:01:28]} 19. f3 {[%clk 0:01:32]}  a5 {[%clk 0:01:19]} 20. Kf2 {[%clk 0:01:31]}  Rab8 {[%clk 0:01:15]} 21. b3 {[%clk 0:01:30]}  Rb4 {[%clk 0:01:11]} 22. Rd3 {[%clk 0:01:29]}  Nd7 {[%clk 0:01:09]} 23. f4 {[%clk 0:01:23]}  Nc5 {[%clk 0:00:55]} 24. Rde3 {[%clk 0:01:22]}  Rd4 {[%clk 0:00:49]} 25. g3 {[%clk 0:01:13]}  f6 {[%clk 0:00:42]} 26. Kf3 {[%clk 0:01:10]}  Kf7 {[%clk 0:00:38]} 27. g4 {[%clk 0:00:57]}  g5 {[%clk 0:00:37]} 28. fxg5 {[%clk 0:00:51]}  fxg5 {[%clk 0:00:35]} 29. e5 {[%clk 0:00:43]}  Rf4+ {[%clk 0:00:28]} 30. Kg3 {[%clk 0:00:37]}  d5 {[%clk 0:00:29]} 31. Rf3 {[%clk 0:00:25]}  Rxf3+ {[%clk 0:00:26]} 32. Kxf3 {[%clk 0:00:26]}  Ke6 {[%clk 0:00:26]} 33. Ke3 {[%clk 0:00:15]}  Rf8 {[%clk 0:00:22]} 34. Kd4 {[%clk 0:00:14]}  Nd7 {[%clk 0:00:22]} 35. Ne2 {[%clk 0:00:08]}  Rf3 {[%clk 0:00:19]} 36. b4 {[%clk 0:00:00]}  axb4 {[%clk 0:00:19]} 0-1


[Site "https://www.chess.com"]

[Event "Titled Tuesday Blitz May 9 Early 2023"]
[White "Weishaeutel, Moritz"]
[Black "Chernomordik, Pavel"]
[WhiteFideId "12967300"]
[BlackFideId "2804530"]
[WhiteElo "2301"]
[BlackElo "2193"]
[Result "1-0"]
[Round "09"]
[TimeControl "180+2"]
[Date "2023.05.09"]
[WhiteClock "0:00:42"]
[BlackClock "0:00:00"]

1. e4 {[%clk 0:03:00]}  g6 {[%clk 0:02:59]} 2. h4 {[%clk 0:02:59]}  d5 {[%clk 0:02:58]} 3. exd5 {[%clk 0:02:57]}  Nf6 {[%clk 0:02:58]} 4. d4 {[%clk 0:02:56]}  Qxd5 {[%clk 0:02:53]} 5. Nc3 {[%clk 0:02:54]}  Qd6 {[%clk 0:02:53]} 6. Bg5 {[%clk 0:02:43]}  Bg7 {[%clk 0:02:48]} 7. Qd2 {[%clk 0:02:43]}  a6 {[%clk 0:02:34]} 8. O-O-O {[%clk 0:02:40]}  h6 {[%clk 0:02:32]} 9. Bf4 {[%clk 0:02:40]}  Qd8 {[%clk 0:02:27]} 10. Bc4 {[%clk 0:02:35]}  b5 {[%clk 0:02:25]} 11. Bb3 {[%clk 0:02:35]}  Bb7 {[%clk 0:02:20]} 12. Nf3 {[%clk 0:02:34]}  Nbd7 {[%clk 0:02:07]} 13. Rhe1 {[%clk 0:02:23]}  b4 {[%clk 0:01:50]} 14. Na4 {[%clk 0:02:22]}  Nd5 {[%clk 0:01:42]} 15. Bxd5 {[%clk 0:02:15]}  Bxd5 {[%clk 0:01:40]} 16. Qxb4 {[%clk 0:02:16]}  e6 {[%clk 0:01:32]} 17. Nc3 {[%clk 0:01:55]}  Bxf3 {[%clk 0:01:30]} 18. gxf3 {[%clk 0:01:55]}  Rb8 {[%clk 0:01:21]} 19. Qa3 {[%clk 0:01:55]}  Qxh4 {[%clk 0:01:13]} 20. Nd5 {[%clk 0:01:39]}  Bf8 {[%clk 0:00:48]} 21. Qa4 {[%clk 0:01:15]}  Bd6 {[%clk 0:00:36]} 22. Re4 {[%clk 0:01:02]}  Qxf2 {[%clk 0:00:18]} 23. Bxd6 {[%clk 0:00:53]}  cxd6 {[%clk 0:00:16]} 24. Nf6+ {[%clk 0:00:54]}  Kf8 {[%clk 0:00:16]} 25. Nxd7+ {[%clk 0:00:53]}  Kg7 {[%clk 0:00:15]} 26. Nxb8 {[%clk 0:00:54]}  Rxb8 {[%clk 0:00:13]} 27. Qa3 {[%clk 0:00:51]}  d5 {[%clk 0:00:09]} 28. Ree1 {[%clk 0:00:48]}  Qg3 {[%clk 0:00:06]} 29. Qe3 {[%clk 0:00:45]}  Kg8 {[%clk 0:00:00]} 30. Qxh6 {[%clk 0:00:42]} 1-0


[Site "https://www.chess.com"]

[Event "Titled Tuesday Blitz May 9 Early 2023"]
[White "Hossain, Enamul"]
[Black "Ismagilov, Damir"]
[WhiteFideId "10200649"]
[BlackFideId "34199982"]
[WhiteElo "2433"]
[BlackElo "2143"]
[Result "1-0"]
[Round "09"]
[TimeControl "180+2"]
[Date "2023.05.09"]
[WhiteClock "0:00:36"]
[BlackClock "0:00:00"]

1. e4 {[%clk 0:03:00]}  e5 {[%clk 0:02:59]} 2. Nf3 {[%clk 0:03:00]}  Nc6 {[%clk 0:02:59]} 3. Bb5 {[%clk 0:02:59]}  a6 {[%clk 0:03:00]} 4. Ba4 {[%clk 0:02:59]}  Nf6 {[%clk 0:03:00]} 5. O-O {[%clk 0:02:59]}  Be7 {[%clk 0:03:01]} 6. Re1 {[%clk 0:02:59]}  b5 {[%clk 0:03:01]} 7. Bb3 {[%clk 0:02:58]}  O-O {[%clk 0:03:02]} 8. h3 {[%clk 0:02:57]}  Bb7 {[%clk 0:03:01]} 9. d3 {[%clk 0:02:56]}  d5 {[%clk 0:03:01]} 10. exd5 {[%clk 0:02:54]}  Nxd5 {[%clk 0:03:02]} 11. Nxe5 {[%clk 0:02:52]}  Nxe5 {[%clk 0:03:01]} 12. Rxe5 {[%clk 0:02:51]}  Qd6 {[%clk 0:03:01]} 13. Re1 {[%clk 0:02:48]}  Rfe8 {[%clk 0:03:01]} 14. Nc3 {[%clk 0:02:47]}  Nxc3 {[%clk 0:02:29]} 15. bxc3 {[%clk 0:02:46]}  Qg6 {[%clk 0:02:09]} 16. Qg4 {[%clk 0:02:43]}  Qxg4 {[%clk 0:02:02]} 17. hxg4 {[%clk 0:02:42]}  Bd6 {[%clk 0:01:47]} 18. Bd2 {[%clk 0:02:31]}  c5 {[%clk 0:01:47]} 19. a4 {[%clk 0:02:21]}  Kf8 {[%clk 0:01:42]} 20. axb5 {[%clk 0:02:13]}  axb5 {[%clk 0:01:34]} 21. Kf1 {[%clk 0:02:11]}  h6 {[%clk 0:01:27]} 22. Rxe8+ {[%clk 0:02:09]}  Kxe8 {[%clk 0:01:25]} 23. Rxa8+ {[%clk 0:01:58]}  Bxa8 {[%clk 0:01:26]} 24. c4 {[%clk 0:01:46]}  bxc4 {[%clk 0:01:14]} 25. Bxc4 {[%clk 0:01:45]}  Ke7 {[%clk 0:01:11]} 26. f3 {[%clk 0:01:35]}  Bc6 {[%clk 0:01:07]} 27. Bc3 {[%clk 0:01:32]}  f6 {[%clk 0:01:07]} 28. Ke2 {[%clk 0:01:30]}  Bf4 {[%clk 0:01:02]} 29. Bd2 {[%clk 0:01:28]}  Be5 {[%clk 0:00:58]} 30. c3 {[%clk 0:01:26]}  Be8 {[%clk 0:00:53]} 31. Bd5 {[%clk 0:01:23]}  Bb5 {[%clk 0:00:41]} 32. c4 {[%clk 0:01:19]}  Ba4 {[%clk 0:00:41]} 33. Be3 {[%clk 0:01:19]}  Kd6 {[%clk 0:00:41]} 34. f4 {[%clk 0:01:16]}  Bc3 {[%clk 0:00:38]} 35. g5 {[%clk 0:01:15]}  hxg5 {[%clk 0:00:34]} 36. fxg5 {[%clk 0:01:15]}  fxg5 {[%clk 0:00:35]} 37. Bxg5 {[%clk 0:01:14]}  Be8 {[%clk 0:00:25]} 38. Kf3 {[%clk 0:01:13]}  Bg6 {[%clk 0:00:24]} 39. Be4 {[%clk 0:01:12]}  Bh5+ {[%clk 0:00:23]} 40. g4 {[%clk 0:01:10]}  Bf7 {[%clk 0:00:21]} 41. Bf4+ {[%clk 0:01:01]}  Be5 {[%clk 0:00:21]} 42. Be3 {[%clk 0:01:00]}  Be6 {[%clk 0:00:20]} 43. Bf5 {[%clk 0:00:59]}  Bf7 {[%clk 0:00:17]} 44. Ke4 {[%clk 0:00:57]}  Bf6 {[%clk 0:00:14]} 45. Bf4+ {[%clk 0:00:52]}  Kc6 {[%clk 0:00:14]} 46. Ke3 {[%clk 0:00:51]}  Bd4+ {[%clk 0:00:14]} 47. Kf3 {[%clk 0:00:51]}  Kb6 {[%clk 0:00:10]} 48. Ke4 {[%clk 0:00:48]}  Kc6 {[%clk 0:00:09]} 49. Be5 {[%clk 0:00:47]}  Bxe5 {[%clk 0:00:04]} 50. Kxe5 {[%clk 0:00:46]}  Be8 {[%clk 0:00:04]} 51. Be4+ {[%clk 0:00:41]}  Kb6 {[%clk 0:00:04]} 52. Kd6 {[%clk 0:00:40]}  Ba4 {[%clk 0:00:01]} 53. g5 {[%clk 0:00:40]}  Bd1 {[%clk 0:00:01]} 54. g6 {[%clk 0:00:38]}  Bh5 {[%clk 0:00:01]} 55. Ke7 {[%clk 0:00:37]}  Ka5 {[%clk 0:00:00]} 56. Kf7 {[%clk 0:00:36]} 1-0


[Site "https://www.chess.com"]